Cogmind - Beta 15 @@@ ROGUE MODE // 2025.09.08 @ 13:58:44 Player: kiiro Result: Self-destructed Performance ------------- Evolutions (2) 1000 Regions Visited (4) 800 Robots Destroyed (20) 100 Value Destroyed (458) 458 Prototype IDs (0) 0 Alien Tech Used (0) 0 Bonus (0) 0 TOTAL SCORE: 2358 Bonus ------- None Cogmind --------- Core Integrity 493/550 Matter 279/300 Energy 38/250 System Corruption 0% Temperature Cool (9) Movement Rolling (100) Location -8/Materials Parts ------- > --- POWER (1) -------- Ion Engine > --- PROPULSION (4) --- Compact Wheel > --- UTILITY (4) ------ Small Storage Unit Weight Redist. System > --- WEAPON (2) ------- Minigun > --- INVENTORY (8) ---- EM Pulse Gun Grenade Launcher Peak State ------------ > --- POWER ------------ Ion Engine > --- PROPULSION ------- Improved Hover Unit Improved Hover Unit Improved Hover Unit Improved Hover Unit > --- UTILITY ---------- Small Storage Unit Weight Redist. System > --- WEAPON ----------- Assault Rifle Mini Grenade Launcher > --- INVENTORY -------- Light Ion Engine EM Pulse Gun EM Pulse Gun Grenade Launcher [Rating: 15] Favorites ----------- Power Ion Engine Engine Ion Engine Propulsion Improved Hover Unit Leg Aluminum Leg Wheel Wheel Hover Unit Improved Hover Unit Utility Small Storage Unit Device Weight Redist. System Storage Small Storage Unit Weapon Assault Rifle Energy Gun EM Pulse Gun Ballistic Gun Assault Rifle Launcher Mini Grenade Launcher Build | -11 -10 -9 -9 -8 ------- Run | Yrd Mat Mat Min Mat Slots Evolved 4 | . . 2 . 2 Power . | . . . . . Propulsion 2 | . . 2 . . Utility 2 | . . . . 2 Weapon . | . . . . . Parts Attached 20 | 7 5 4 3 1 Power 2 | 1 . 1 . . Engine 2 | 1 . 1 . . Core . | . . . . . Reactor . | . . . . . Propulsion 9 | 2 2 2 3 . Treads . | . . . . . Leg 2 | 2 . . . . Wheel 3 | . . . 3 . Hover 4 | . 2 2 . . Flight . | . . . . . Utility 2 | 1 . 1 . . Device 1 | . . 1 . . Storage 1 | 1 . . . . Processor . | . . . . . Hackware . | . . . . . Protection . | . . . . . Artifact . | . . . . . Weapon 7 | 3 3 . . 1 Energy Gun 2 | 2 . . . . Energy Cannon . | . . . . . Ballistic Gun 3 | 1 1 . . 1 Ballistic Cannon . | . . . . . Launcher 2 | . 2 . . . Special Weapon . | . . . . . Impact Weapon . | . . . . . Slashing Weapon . | . . . . . Piercing Weapon . | . . . . . Special Melee Weapon . | . . . . . Unidentified Prototypes . | . . . . . Parts Lost 10 | . . 5 . 5 Power 1 | . . . . 1 Propulsion 6 | . . 3 . 3 Utility . | . . . . . Weapon 3 | . . 2 . 1 Highest Loss Streak 5 | . . 3 . 5 To Critical Strikes . | . . . . . Average Backups 3 | 1 5 4 3 3 Power . | . 1 1 1 1 Propulsion . | . 1 . . . Utility . | . . . . . Weapon 2 | . 2 2 2 2 Tool/Special . | . . . . . Unused Backups 2 | . 2 . . . Power . | . . . . . Propulsion 2 | . 2 . . . Utility . | . . . . . Weapon . | . . . . . Tool/Special . | . . . . . Average Slot Usage (%) 81 | . 83 86 80 70 Engine 11 | . 14 11 11 5 Leg 8 | . 21 . . . Wheel 10 | . . . 25 25 Hover 13 | . 6 36 11 5 Device 5 | . . 7 11 9 Storage 11 | . 14 11 11 9 Ballistic Gun 16 | . 24 9 11 15 Launcher 2 | . 1 7 . . Peak Build Rating 15 | 6 10 15 10 13 Average Rating 8 | 5 6 12 9 10 On Entrance 6 | . 5 10 7 10 Naked Turns . | . . . . . Heaviest Build 15 | 14 15 14 10 13 Greatest Support 42 | 20 20 34 42 42 Greatest Overweight (x) 1 | . 1 . . . Average Overweight (x) . | . . . . . Largest Inventory Capacity 8 | 8 8 8 8 8 Average Capacity 7 | 7 8 8 8 8 Most Carried 7 | 3 7 6 3 3 Average Carried 3 | 1 5 4 3 2 Final Capacity 8 | 8 8 8 8 8 Final Carried 7 | 3 7 3 3 2 Class Distribution -------------------- 100% | Mutant Dominant Class ---------------- Mutant | -10/Materials Mutant | -9/Materials Mutant | -9/Mines Mutant | -8/Materials Resources | -11 -10 -9 -9 -8 ----------- Run | Yrd Mat Mat Min Mat Matter Collected 646 | 244 32 52 140 178 Remotely . | . . . . . Salvage Created 467 | 27 51 276 45 68 Parts 31 | 1 8 13 5 4 Haulers Intercepted . | . . . . . Recyclers Shooed . | . . . . . Parts Field Recycled . | . . . . . Retrieved Matter . | . . . . . Parts Self-Destructed . | . . . . . Prevented . | . . . . . Kills | -11 -10 -9 -9 -8 ------- Run | Yrd Mat Mat Min Mat Combat Hostiles Destroyed 16 | . 3 9 . 4 Guns 7 | . 3 . . 4 AOE 9 | . . 9 . . Classes Destroyed 5 | 1 1 3 . . Tunneler 3 | 1 . . 2 . Recycler 1 | . . 1 . . Swarmer 7 | . 3 . . 4 Grunt 7 | . . 7 . . Sentry 2 | . . 2 . . Best Kill Streak 9 | 1 2 9 3 4 Combat Bots Only 8 | . 2 8 . 4 Max Kills in Single Turn 5 | 1 1 5 1 1 Gunslinging . | . . . . . Exploded 5 | . . 5 . . Melee . | . . . . . Uniques/NPCs Destroyed . | . . . . . Combat | -11 -10 -9 -9 -8 -------- Run | Yrd Mat Mat Min Mat Hostile Shots Fired 106 | . 7 43 . 56 Missed 37 | . 2 16 . 19 Hits 69 | . 5 27 . 37 Projectile 69 | . 5 27 . 37 Critical Strikes 3 | . . 2 . 1 Damage Taken 779 | . 36 376 . 367 Core 134 | . 8 69 . 57 Absorbed by Shields . | . . . . . Core Remaining (%) 92 | 100 96 . 82 . Volleys Fired 36 | 4 4 14 4 10 Largest 2 | 2 2 2 1 2 Hottest 80 | 80 40 70 20 45 Shots Fired 62 | 8 8 22 4 20 Gun 51 | 8 8 11 4 20 Cannon . | . . . . . Launcher 11 | . . 11 . . Special . | . . . . . Kinetic 39 | . 8 7 4 20 Thermal . | . . . . . Explosive 11 | . . 11 . . Electromagnetic 12 | 8 . 4 . . Robot Hit Streak 8 | 2 3 8 5 3 Robot Miss Streak 3 | 3 1 2 . 3 Penetration Max . | . . . . . Secondary Targets 2 | . . . . 2 Max Gunslinging Chain 1 | . . . . 1 Shots Hit Robots 36 | 4 5 14 4 9 Core Hits 29 | 1 3 19 2 4 Critical Kills 1 | . . . 1 . Critical Parts Destroyed 2 | . 1 1 . . Critical Strikes 3 | . 1 1 1 . Destroy 3 | . 1 1 1 . Melee Attacks . | . . . . . Impact . | . . . . . Slashing . | . . . . . Piercing . | . . . . . Sneak Attacks . | . . . . . Combat Hostiles . | . . . . . Follow-up Attacks . | . . . . . Damage Inflicted 1241 | 52 56 939 50 144 Guns 362 | 52 56 60 50 144 Cannons . | . . . . . Explosions 879 | . . 879 . . Melee . | . . . . . Ramming . | . . . . . Kinetic 298 | . 56 48 50 144 Thermal . | . . . . . Explosive 879 | . . 879 . . Electromagnetic 64 | 52 . 12 . . Impact . | . . . . . Slashing . | . . . . . Piercing . | . . . . . Highest Corruption . | . . . . . Average Corruption . | . . . . . Corruption Purged . | . . . . . Corruption Blocked . | . . . . . Overload Shots . | . . . . . Overflow Damage 52 | . . 52 . . Projectiles . | . . . . . Explosions 52 | . . 52 . . Melee . | . . . . . Knockbacks . | . . . . . Impact . | . . . . . Kinetic . | . . . . . Secondary . | . . . . . Self-Inflicted Damage 24 | . . 24 . . Shots 1 | . . 1 . . Rammed . | . . . . . Targets Rammed . | . . . . . Kicked . | . . . . . Crushed . | . . . . . Highest Temperature 48 | 36 . 48 . . Average Temperature 20 | 20 . 20 . . Received Heat Transfer 225 | . . 171 . 54 Siege Activations . | . . . . . Martial Activations . | . . . . . Shielding Activations . | . . . . . Robots Disrupted . | . . . . . Combat Hostiles . | . . . . . Robots Corrupted . | . . . . . Combat Hostiles . | . . . . . Parts Fried 1 | 1 . . . . Impact Corruptions . | . . . . . Robots Melted . | . . . . . Combat Hostiles . | . . . . . Parts Melted . | . . . . . Heat Transferred . | . . . . . Parts Sabotaged . | . . . . . Parts Stolen . | . . . . . Parts Stripped . | . . . . . Power Chain Reactions . | . . . . . Alert | -11 -10 -9 -9 -8 ------- Run | Yrd Mat Mat Min Mat Maximum Alert Level 1 | . . 1 . . Low Security (%) 94 | 100 100 66 100 100 Level 1 5 | . . 33 . . Level 2 . | . . . . . Level 3 . | . . . . . Level 4 . | . . . . . Level 5 . | . . . . . High Security . | . . . . . Max Security . | . . . . . Peak Influence 273 | 5 65 273 105 90 Initial 95 | . . . 95 . Average 36 | . 15 81 51 38 Influence Increases 596 | 5 104 350 10 127 Destroy 0b10 Robot/C 320 | . 60 180 . 80 Destroy 0b10 Robot/NC 20 | 5 . 5 10 . Destroy Leader 60 | . 10 40 . 10 Successful Hack 26 | . 19 . . 7 Disable Machine 30 | . . 30 . . Destroy Structure 65 | . . 65 . . Lose Combat Pursuer 75 | . 15 30 . 30 Influence Decreases 566 | 5 104 105 255 97 Entered New Map 150 | . . . 150 . Time Decay 316 | 5 104 55 105 47 Lost Part 100 | . . 50 . 50 Squads Dispatched 1 | . . 1 . . Investigation . | . . . . . Extermination . | . . . . . Reinforcement 1 | . . 1 . . Assault . | . . . . . Garrison . | . . . . . Intercept . | . . . . . Searches Triggered . | . . . . . Construction Impeded . | . . . . . Haulers Reinforced . | . . . . . Active Scanning Responses . | . . . . . Cargo Convoy Interrupts . | . . . . . Stealth | -11 -10 -9 -9 -8 --------- Run | Yrd Mat Mat Min Mat Distress Signals . | . . . . . Communications Jammed . | . . . . . Distress Signals . | . . . . . Times Spotted 33 | . 4 17 . 12 Peak Tracking Total 8 | . 3 8 . 6 Tactical Retreats 4 | . 1 1 . 2 Traps | -11 -10 -9 -9 -8 ------- Run | Yrd Mat Mat Min Mat Traps Triggered . | . . . . . Indirectly . | . . . . . Trap Hack Attempts . | . . . . . Triggered . | . . . . . Disarmed . | . . . . . Reprogrammed . | . . . . . Reused . | . . . . . Traps Extracted . | . . . . . Installed . | . . . . . Triggered . | . . . . . Machines | -11 -10 -9 -9 -8 ---------- Run | Yrd Mat Mat Min Mat Machines Disabled 2 | . . 2 . . Max in Single Turn 1 | . . 1 . . Machines Repaired . | . . . . . Machines Dismantled . | . . . . . Machines Sabotaged . | . . . . . Overloaded Fab Kills . | . . . . . Hacking | -11 -10 -9 -9 -8 --------- Run | Yrd Mat Mat Min Mat Machines Accessed 9 | . 6 2 . 1 Terminals 6 | . 4 1 . 1 Fabricators . | . . . . . Repair Stations 1 | . 1 . . . Recycling Units 1 | . 1 . . . Scanalyzers 1 | . . 1 . . Garrison Access . | . . . . . Total Hacks 27 | . 17 5 . 5 Successful 9 | . 6 2 . 1 Failed 18 | . 11 3 . 4 Catastrophic 4 | . 2 . . 2 Database Lockouts . | . . . . . Manual 12 | . 9 . . 3 Terminals 20 | . 13 2 . 5 Fabricators . | . . . . . Repair Stations 3 | . 3 . . . Recycling Units 1 | . 1 . . . Scanalyzers 3 | . . 3 . . Garrison Access . | . . . . . Terminal Hacks 6 | . 5 . . 1 Part Schematic 1 | . 1 . . . Fabricator Index 1 | . 1 . . . Locate Traps 1 | . 1 . . . Registered Components 2 | . 1 . . 1 Zone Layout 1 | . 1 . . . Fabricator Hacks . | . . . . . Repair Station Hacks . | . . . . . Recycling Unit Hacks 1 | . 1 . . . Retrieve Components 1 | . 1 . . . Scanalyzer 2 | . . 2 . . Insert Component 1 | . . 1 . . Analyze 1 | . . 1 . . Garrison Access Hacks . | . . . . . Unauthorized Hacks . | . . . . . Terminals . | . . . . . Fabricators . | . . . . . Repair Stations . | . . . . . Recycling Units . | . . . . . Scanalyzers . | . . . . . Garrison Access . | . . . . . Data Cores Recovered . | . . . . . Used . | . . . . . Hacking Detections 8 | . 6 1 . 1 Full Trace Events . | . . . . . Feedback Events . | . . . . . Feedback Blocked . | . . . . . Robot Schematics Acquired . | . . . . . Robots Built . | . . . . . Authchips . | . . . . . Time . | . . . . . Total Robot Build Rating . | . . . . . Part Schematics Acquired 2 | . 1 1 . . Parts Built . | . . . . . Authchips . | . . . . . Time . | . . . . . Total Part Build Rating . | . . . . . Parts Repaired . | . . . . . Time . | . . . . . Parts Recycled . | . . . . . Recycled Matter . | . . . . . Retrieved Matter . | . . . . . Retrieved Components 10 | . 10 . . . Parts Scanalyzed 1 | . . 1 . . Part Schematics Acquired 1 | . . 1 . . Parts Damaged . | . . . . . Bothacking | -11 -10 -9 -9 -8 ------------ Run | Yrd Mat Mat Min Mat Used RIF Installer . | . . . . . Robots Hacked . | . . . . . Non-combat . | . . . . . Combat . | . . . . . Robot Hacks Applied . | . . . . . Relay Couplers Released . | . . . . . Fabnet Peak Effective % . | . . . . . Robots Rewired . | . . . . . Allies Hacked . | . . . . . Hacks Repelled . | . . . . . Allies | -11 -10 -9 -9 -8 -------- Run | Yrd Mat Mat Min Mat Total Allies . | . . . . . Largest Group . | . . . . . Highest-Rated Group . | . . . . . Highest-Rated Ally . | . . . . . Total Orders . | . . . . . Ally Attacks . | . . . . . Total Damage . | . . . . . Kills . | . . . . . Allies Corrupted . | . . . . . Allies Melted . | . . . . . Intel | -11 -10 -9 -9 -8 ------- Run | Yrd Mat Mat Min Mat Active Infowar (turns) . | . . . . . Robot Analysis Total . | . . . . . Derelict Logs Recovered 2 | . . . 2 . Drone Launches . | . . . . . Drone Recoveries . | . . . . . Exploration | -11 -10 -9 -9 -8 ------------- Run | Yrd Mat Mat Min Mat Turns Passed 985 | 124 339 166 232 124 Spaces Moved 929 | 85 288 188 261 107 Core 2 | 2 . . . . Treads . | . . . . . Legs 274 | 83 191 . . . Wheels 366 | . . . 259 107 Hover 287 | . 97 188 2 . Flight . | . . . . . Fastest Speed 48 | 50 56 48 60 86 Average Speed 84 | 118 98 50 82 87 Slowest Speed 190 | 120 190 60 86 100 Overloaded Moves . | . . . . . Propulsion Burnouts . | . . . . . Robots Hopped . | . . . . . Potential Cave-ins . | . . . . . Cave-ins Triggered . | . . . . . Exploration Rate (%) 28 | 3 45 15 59 18 Regions Visited 4 Branch Regions 1 Pre-discovered Areas . | . . . . . Known Exits Taken . | . . . . . Unknown Exits Taken 4 | 1 1 1 1 . Scrap Searched 2 | . . . 2 . Spaces Dug 9 | . . 9 . . Terrain Destroyed 80 | . . 80 . . Melee . | . . . . . Projectile . | . . . . . AOE 80 | . . 80 . . Terrain Rammed . | . . . . . Walls Destroyed . | . . . . . Machines Disabled . | . . . . . Actions | -11 -10 -9 -9 -8 --------- Run | Yrd Mat Mat Min Mat Total 1059 | 98 333 238 271 119 Wait 54 | . 24 26 4 . Move 925 | 84 287 187 260 107 Hop . | . . . . . Pick Up 6 | 1 5 . . . Fast Attach 13 | 7 2 . 3 1 Attach 9 | . 1 7 . 1 Detach 7 | 2 2 3 . . Swap 6 | . 5 1 . . Drop 3 | . 3 . . . Fire 36 | 4 4 14 4 10 Melee . | . . . . . Ram . | . . . . . Kick . | . . . . . Crush . | . . . . . Escape Stasis . | . . . . . Rewire . | . . . . . Trap . | . . . . . Miscellaneous . | . . . . . Route ------- -11/Scrapyard -10/Materials (discovered 4 exits: *Mat x2 / [*Min] / [*Sub]) -9/Materials -9/Mines (discovered 2 exits: *Mat / Exi) -8/Materials History --------- Turn | Location | Event 15 | -11/Scrapyard | Discovered new exit (range 16) 125 | -11/Scrapyard | Entered Materials 222 | -10/Materials | Discovered new exit (range 19) 289 | -10/Materials | Discovered new exit (range 16) 305 | -10/Materials | Build established: Mutant 358 | -10/Materials | Discovered new exit (range 9) 458 | -10/Materials | Discovered new exit (range 10) 464 | -10/Materials | Entered another Materials area 464 | -9/Materials | Evolved 2 slots: Propulsion x2 605 | -9/Materials | Destroyed 8 combat bots 609 | -9/Materials | Discovered new exit (range 6) 612 | -9/Materials | Lost 3 parts (2n1w) 630 | -9/Materials | Entered Mines 784 | -9/Mines | Discovered new exit (range 12) 814 | -9/Mines | Identified exit to Exiles 862 | -9/Mines | Entered Materials 862 | -8/Materials | Evolved 2 slots: Utility x2 986 | -8/Materials | Self-destructed Last Messages --------------- 9O1X8GNJS3: Melee Analysis Suite Downloaded coordinate data. 00887_ Acquired Minigun. 00897_ K-01 Serf collects debris. 00905_ Acquired 144 matter. 00910_ Destroyed Flight Unit. 00912_ S-10 Pest destroyed. 00913_ Acquired 14 matter. 00921_ S-10 Pest destroyed. 00921_ Switching to secondary target: S-10 Pest. 00929_ S-10 Pest destroyed. 00933_ Acquired 20 matter. 00934_ Imp. Hover Unit destroyed. 00934_ Lgt. Ion Engine destroyed. 00942_ S-10 Pest destroyed. 00942_ Switching to secondary target: G-47 Trooper. 00945_ R-06 Scavenger collects Flight Unit. 00964_ Wheel destroyed. 00980_ Assault Rifle destroyed. 00983_ Wheel destroyed. Map ----- +----------------------------------------------------+ | #?????????????????????????????????????????????? | | #?????????????????????????????????????????????? | | #?????????????????????????????????????????????? | | =#?????????????????????????????????????????????? | | ?#%#?????????????????????????????????????????????? | | ?# #?????????????????????????????????????????????? | | ?# #?????????????????????????????????????????????? | | ## ##### ????????????????????????????????? | | ????????????????????????????????? | | ## ##### ????????????????????????????????? | | ?# #?????????????????????????????????????????????? | | ?# #?????????????????????????????????????????????? | | ?# #?????????????? ??????????????????????????? | | ?# #???????????? ??????????????????????????? | | ## ###????????# ??????????????????????????? | | #????????# ??????????????????????????? | | #????????# ??????????????????????????? | | " #?????!??# ??????????????????????????? | | #????????# ??????????????????????????? | | #????????# #####?????????????????????? | | # ##????????# #?????????????????????? | | # #?????????# ##????????????????????? | | + #?????????# ar ?????????????????????? | | # #?????????# #?????????????????????? | | # #?????????# #?????????????????????? | | # #?????############ @ #?????????????????????? | | # ####### ## ##????????????????????? | | # + # #????????????????????? | | # ####### # #####????????????????? | | # #?????# # ????????????? | | ##+######## """ + Y u ???????????? | | # """ # ???????????? | | # """ # #########????????????? | | " """ """ # # #????????????????????? | | " """ """ ###################????????????????????? | | " """ """ #??????????????????????????????????????? | | ???????????????????????????????????????? | | ##########???????????????????????????????????????? | | | | | | | | | | | | | | | | | | | | | | | | | +----------------------------------------------------+ Best States ------------- Heat Dissipation 31 Energy Generation 10 Energy Capacity 250 Matter Stores 300 Matter Capacity 300 Sight Range 16 Terrain Scan Density 10 Additional Mass Support 6 Evasion (%) 55 Item Schematics ----------------- Hover Unit | -10/Materials | Hacked Imp. Hover Unit | -9/Materials | Scanalyzed Robot Schematics ------------------ None Fabricated ------------ Nothing Repaired ---------- Nothing Alien Tech Used ----------------- None Achievements -------------- Quick And Dirty Challenges ------------ None Game ------ Seed PhasingWarpFemtoactuators Manual? 0 Play Time 00:17:22 Cumulative 16.7 hours Start 2025.09.08 @ 13:42:58 End 2025.09.08 @ 13:58:44 Sessions 1 Manual Loads 0 Difficulty Rogue Special Mode None Game No. 16 Rogue 16 Adventurer 0 Explorer 0 Win Type - Total 0 Types 0/0/0/0/0/0/0/0/0/0 Lore% 3 Gallery% 14 Achievement% 16 Wizard Run 0 Options --------- Layout 0 ASCII 1 Keyboard 1 Movement Vi Keybinds 0 Fullscreen 0 Font 20/Cased Map View 76x50 Zoom Use 0% Tactical HUD 1 Map Filters NONE Filters NONE Steam 1 RUN: ab8828e2-2e48-41f8-b616-16f400d4f3bf